Workbook

Sheet Hoja1 (hidden)
A5: GENERALIDADES | E5: DEDUCCIONES
E6: Aporte empleados | I6: Aporte empleador | O6: $0.01
A7: Nombres | B7: Cargo | C7: cedula | D7: Sueldo bruto | E7: SFS 3.04% | F7: Percapita | G7: AFP 2.87% | H7: Total de deducciones | I7: SFS 7.09% | J7: AFP 7.10% | K7: Total de aportes | L7: Sueldo bruto mensual | M7: Sueldo bruto anual | N7: ISR | O7: INFOTEP | P7: TOTAL DEDUCCION | Q7: Sueldo neto a cobrar | R7: Costo del trabajador
A8: Perez | B8: Supervisor | C8: 402-0000000-1 | D8: $75,000.00 | E8: =+D8*3.04% -> $2,280.00 | G8: =+D8*2.87% -> $2,152.50 | H8: =+G8+E8 -> $4,432.50 | I8: =+D8*7.09% -> $5,317.50 | J8: =+D8*7.1% -> $5,325.00 | K8: =+J8+I8 -> $10,642.50 | L8: =+D8-H8 -> $70,567.50 | M8: =+L8*12 -> $846,810.00 | N8: =IF(M8>M$21,(M8-M$21)*L$21+N$21,IF(M8>M$20,(M8-M$20)*L$20+N$20,IF(M8>M$19,(M8-M$19)*L$19,0)))/12 -> $6,309.35 | O8: =D8*O$6 -> 750 | P8: =E8+G8+N8 -> $10,741.85 | Q8: =D8-P8 -> $64,258.15
A9: Lucas | B9: Contador | C9: 402-0000000-2 | D9: $60,000.00 | E9: $1,824.00 | G9: $1,722.00 | H9: $3,546.00 | I9: $4,254.00 | J9: $4,260.00 | K9: $8,514.00 | L9: $56,454.00 | M9: $677,448.00 | N9: $3,486.65 | O9: =D9*O$6 -> 600 | P9: $7,032.65 | Q9: $52,967.35
A10: Martinez | B10: Enpacador | C10: 402-0000000-3 | D10: $30,000.00 | E10: $912.00 | G10: $861.00 | H10: $1,773.00 | I10: $2,127.00 | J10: $2,130.00 | K10: $4,257.00 | L10: $28,227.00 | M10: $338,724.00 | N10: $0.00 | O10: 300 | P10: $1,773.00 | Q10: $28,227.00
A11: Omar | B11: Encargado RRHH | C11: 402-0000000-4 | D11: $45,000.00 | E11: $1,368.00 | G11: $1,291.50 | H11: $2,659.50 | I11: $3,190.50 | J11: $3,195.00 | K11: $6,385.50 | L11: $42,340.50 | M11: $508,086.00 | N11: $1,148.32 | O11: 450 | P11: $3,807.82 | Q11: $41,192.18
A12: Leonel | B12: Auditor | C12: 402-0000000-5 | D12: $60,000.00 | E12: $1,824.00 | G12: $1,722.00 | H12: $3,546.00 | I12: $4,254.00 | J12: $4,260.00 | K12: $8,514.00 | L12: $56,454.00 | M12: $677,448.00 | N12: $3,486.65 | O12: 600 | P12: $7,032.65 | Q12: $52,967.35
A13: Danilo | B13: Gerente | C13: 402-0000000-6 | D13: $65,000.00 | E13: $1,976.00 | G13: $1,865.50 | H13: $3,841.50 | I13: $4,608.50 | J13: $4,615.00 | K13: $9,223.50 | L13: $61,158.50 | M13: $733,902.00 | N13: $4,427.55 | O13: 650 | P13: $8,269.05 | Q13: $56,730.95
A14: Samuel | B14: Auxiliar | C14: 402-0000000-7 | D14: $37,000.00 | E14: $1,124.80 | G14: $1,061.90 | H14: $2,186.70 | I14: $2,623.30 | J14: $2,627.00 | K14: $5,250.30 | L14: $34,813.30 | M14: $417,759.60 | N14: $19.24 | O14: 370 | P14: $2,205.94 | Q14: $34,794.06
A15: Jorge | B15: Encargado de compras | C15: 402-0000000-8 | D15: $43,000.00 | E15: $1,307.20 | G15: $1,234.10 | H15: $2,541.30 | I15: $3,048.70 | J15: $3,053.00 | K15: $6,101.70 | L15: $40,458.70 | M15: $485,504.40 | N15: $866.05 | O15: 430 | P15: $3,407.35 | Q15: $39,592.65
B16: Totales | D16: =SUM(D8:D15) -> $415,000.00 | E16: =SUM(E8:E15) -> $12,616.00 | G16: =SUM(G8:G15) -> $11,910.50 | H16: $24,526.50 | I16: $29,423.50 | J16: $29,465.00 | K16: $58,888.50 | L16: $390,473.50 | M16: $4,685,682.00 | N16: $19,743.82 | O16: $4,150.00 | P16: $44,270.32 | Q16: $370,729.68 | R16: $0.00
K18: Escala | L18: porcentaje | M18: monto | N18: monto en mes
K19: Escala minima | L19: 15% | M19: 416,220.01 | N19: =M19/12 -> $34,685.00
K20: Escala intermedia | L20: 20% | M20: 624,329.01 | N20: $31,216.00
K21: Escala maxima | L21: 25% | M21: 867,123.01 | N21: $79,776.00

Sheet Nomina empleados
B3: EMPRESA X
B4: RNC: 132560430
B5: Nomina de Empleados
B6: Del 1 al 15 de JULIO- 2025
L7: DEDUCCIONES
B8: Nombre | C8: Departamento | D8: Cargo | E8: Cedula | F8: Fecha de Entrada | G8: Salario Mensual | H8: Salario Quincenal | I8: Horas Extras | J8: Otros Ingresos | K8: Total de Ingresos | L8: SFS (3.04%) | M8: AFP (2.87%) | N8: ISR | O8: Otros Descuentos | P8: Total Deducciones | Q8: Total a Pagar
B9: Empleado 1 | C9: Ventas | D9: Gerente | E9: 001-1361413-5 | F9: 2024-07-03 | G9: 60,000.00 | H9: =+G9/2 -> 30,000.00 | K9: =SUM(H9:J9) -> 30,000.00 | L9: =H9*3.04% -> 912.00 | M9: =H9*2.87% -> 861.00 | N9: =3486.65/2 -> 1,743.33 | P9: =SUM(L9:O9) -> 3,516.33 | Q9: =K9-P9 -> 26,483.68
B10: Empleado 2 | C10: Contabilidad | D10: Auxiliar | E10: 021-0006315-1 | F10: 2023-10-23 | G10: 45,000.00 | H10: =+G10/2 -> 22,500.00 | K10: =SUM(H10:J10) -> 22,500.00 | L10: =H10*3.04% -> 684.00 | M10: =H10*2.87% -> 645.75 | P10: =SUM(L10:O10) -> 1,329.75 | Q10: =K10-P10 -> 21,170.25
B11: Empleado 3 | C11: Recursos Humanos | D11: Secretaria | E11: 402-0519780-5 | F11: 2022-05-05 | G11: 35,000.00 | H11: =+G11/2 -> 17,500.00 | K11: 17,500.00 | L11: 532.00 | M11: 502.25 | P11: 1,034.25 | Q11: 16,465.75
B13: Totales | G13: =SUM(G9:G11) -> 140,000.00 | H13: =SUM(H9:H11) -> 70,000.00 | I13: =SUM(I9:I11) -> 0 | K13: =SUM(K9:K12) -> 70,000.00 | L13: =SUM(L9:L11) -> 2,128.00 | M13: =SUM(M9:M11) -> 2,009.00 | N13: =SUM(N9:N12) -> 1,743.33 | P13: =SUM(P9:P11) -> 5,880.33 | Q13: =SUM(Q9:Q11) -> 64,119.68

Sheet Calculo -ISR
G2: MENSUAL
G3: 60,000.00 | H3: SALARIO
G4: =+G3*5.91% -> 3,546.00 | H4: TSS (3.04% + 2.87%)
G5: =+G3-G4 -> 56,454.00 | H5: Salario Cotizable ISR
G6: =56454-52027.43 -> 4,426.57 | H6: Excedente según aplique
G7: =4426.57*20% -> 885.31 | H7: Porcetaje de ISR según aplique
G8: 2,601.36 | H8: Base imponible DGII
G9: =G7+G8 -> 3,486.67 | H9: Impuesto sobre la renta a pagar mensual
G10: =G9/2 -> 1,743.34
G13: ANUAL
G14: =G5*12 -> 677,448.00 | H14: Salario Anual
G15: =G14-624329.01 -> 53,118.99 | H15: Excedente anual
G16: =G15/12 -> 4,426.58 | H16: Excedente mensual
G17: =+G16*0.2 -> 885.32 | H17: Porcetaje de ISR según aplique
G18: 2,601.36 | H18: Base imponible DGII
G19: =+G17+2601.36 -> 3,486.68 | H19: Impuesto sobre la renta a pagar mensual
A26: Escala | B26: porcentaje | C26: Monto ANUAL | D26: VALOR A SUMAR | E26: BASE ESTABLECIDA DGII
A27: Escala minima | B27: 15% | C27: 416,220.01 | D27: 34,685.01 | E27: 0.00
A28: Escala media | B28: 20% | C28: 624,329.01 | D28: 52,027.43 | E28: 2,601.36
A29: Escala maxima | B29: 25% | C29: 867,123.01 | D29: 72,260.25 | E29: 6,647.92
A33: SALARIO | B33: TSS | C33: SALARIO PARA ISR | D33: TOTAL ISR
A34: 60,000.00 | B34: =A34*5.91% -> 3,546.00 | C34: =A34-B34 -> 56,454.00 | D34: =(C34-D28)*20%+E28 -> 3,486.67
A35: 45,000.00 | B35: =A35*5.91% -> 2,659.50 | C35: =A35-B35 -> 42,340.50 | D35: =(C35-D27)*15% -> 1,148.32
A36: 50,000.00 | B36: 2,955.00 | C36: 47,045.00 | D36: =(C36-D27)*15% -> 1,854.00
A37: 75,000.00 | B37: 4,432.50 | C37: 70,567.50 | D37: =(C37-D29)*25%+E29 -> 6,224.73
A38: 48,500.00 | B38: 2,866.35 | C38: 45,633.65 | D38: =(C38-D27)*15% -> 1,642.30
D39: =SUM(D34:D38) -> 14,356.02

Sheet ISR (hidden)
A2: Escala | B2: porcentaje | C2: Monto | D2: VALOR A SUMAR
A3: Escala minima | B3: 15% | C3: 416,220.01 | D3: 0.00 | E3: =E12-C4 -> 53,118.99 | F3: =+E3*0.2 -> 10,623.80 | G3: =F3/12 -> 885.32
A4: Escala media | B4: 20% | C4: 624,329.01 | D4: 31,216.00 | E4: =+E3/12 -> 4,426.58 | F4: =+E4*0.15 -> 663.99 | G4: =G3+2601.36 -> 3,486.68
A5: Escala maxima | B5: 25% | C5: 867,123.01 | D5: 79,776.00
B8: 3.04% | C8: 2.87% | D8: 1 | E8: 2 | F8: 3 | G8: 4 | H8: 5 | I8: 6
A9: Salario bruto | B9: SFS | C9: AFP | D9: Salario Cotizable ISR | E9: salario neto anual | F9: salario neto anual - monto (EXCEDENTE) | G9: multiplicacion de porcentaje | H9: porcentaje + VALOR A SUMAR | I9: dividir entre 12
A11: =+Hoja1!D8 -> 75,000.00 | B11: =+Hoja1!E8 -> 2,280.00 | C11: =+Hoja1!G8 -> 2,152.50 | D11: =A11-B11-C11 -> 70,567.50 | E11: =+D11*12 -> 846,810.00 | F11: =+E11-C4 -> 222,480.99 | G11: =+F11*20% -> 44,496.20 | H11: =+G11+D4 -> 75,712.20 | I11: =+H11/12 -> 6,309.35
A12: =+Hoja1!D9 -> 60,000.00 | B12: =+Hoja1!E9 -> 1,824.00 | C12: =+Hoja1!G9 -> 1,722.00 | D12: 56,454.00 | E12: =+D12*12 -> 677,448.00 | F12: =+E12-C4 -> 53,118.99 | G12: =+F12*20% -> 10,623.80 | H12: =+G12+D4 -> 41,839.80 | I12: 3,486.65
A13: 85,000.00 | B13: =+A13*3.04% -> 2,584.00 | C13: =+A13*2.87% -> 2,439.50 | D13: 79,976.50 | E13: 959,718.00 | F13: =+E13-C5 -> 92,594.99 | G13: =+F13*B5 -> 23,148.75 | H13: =+G13+D5 -> 102,924.75 | I13: 8,577.06
A14: 115,000.00 | B14: =+A14*3.04% -> 3,496.00 | C14: =+A14*2.87% -> 3,300.50 | D14: 108,203.50 | E14: 1,298,442.00 | F14: =+E14-C5 -> 431,318.99 | G14: =+F14*25% -> 107,829.75 | H14: =+G14+D5 -> 187,605.75 | I14: 15,633.81
A15: 150,000.00 | B15: =+A15*3.04% -> 4,560.00 | C15: 4,305.00 | D15: 141,135.00 | E15: 1,693,620.00 | F15: =+E15-C5 -> 826,496.99 | G15: =+F15*B5 -> 206,624.25 | H15: =+G15+D5 -> 286,400.25 | I15: 23,866.69
A16: 43,000.00 | B16: 1,307.20 | C16: 1,234.10 | D16: 40,458.70 | E16: 485,504.40 | F16: 62,433.00 | G16: =+F16*15% -> 9,364.95 | I16: =+G16/12 -> 780.41
A17: =+Hoja1!D14 -> 37,000.00 | B17: 1,124.80 | C17: 1,061.90 | D17: 34,813.30 | E17: 417,759.60 | I17: =+G17/12 -> 0.00
A18: =+Hoja1!D15 -> 43,000.00 | B18: 1,307.20 | C18: 1,234.10 | D18: 40,458.70 | E18: 485,504.40
G20: MENSUAL
G21: 60,000.00
B22: 13,580.91 | G22: =+G21*5.91% -> 3,546.00
B23: =+A10+B22 -> 13,580.91 | G23: =+G21-G22 -> 56,454.00
G24: =G23-52027.43 -> 4,426.57
G25: =+G24*0.2 -> 885.31
G26: 2,601.36
G27: =SUM(G25:G26) -> 3,486.67
G31: ANUAL
G32: =G23*12 -> 677,448.00
G33: =G32-624329.01 -> 53,118.99 | H33: =416220/12 -> 34,685.00
G34: =G33/12 -> 4,426.58 | H34: =624329/12 -> 52,027.42
G35: =+G34*0.2 -> 885.32
G36: =+G35+2601.36 -> 3,486.68

Sheet Calculadora ISR- DGII

Sheet NOMINA-TSS
M1: OTRAS REMUNERACIONES
B2: CEDULA | D2: FECHA DE INGRESO | E2: NOMBRE | F2: PUESTO | G2: SUELDO BRUTO | H2: COMSION | I2: VACACIONES | J2: SALARIO COTIZABLE TSS | K2: DESC TRABAJADOR | M2: BONIFICACION | N2: HORAS EXTRAS | O2: SALARIO COTIZABLE ISR/DGII | P2: SALARIO COTIZABLE ANUAL | Q2: ISR COBRADO | R2: INGRESOS EXENTOS | V2: APORTE EMPRESA | Y2: TOTAL | Z2: COSTO DEL TRABAJDOR
K3: 2.87 | L3: 3.04 | R3: SUELDO NETO | S3: PRE-AVISO Y CESANTIA | T3: REGALIA PASCUAL | U3: TOTAL A PAGAR | V3: 7.1 | W3: 7.09 | X3: 1.1 | Y3: APORTE TSS
K4: TOTAL AFP | L4: TOTAL SFS | V4: TOTAL AFP | W4: TOTAL SFS | X4: SRL
B5: 1 | C5: 031-0109456-4 | D5: 2014-01-01 | E5: ALAN ALBERTO | F5: empleado 1 | G5: 90,000.00 | J5: =G5+H5+I5 -> 90,000.00 | K5: =J5*K$3% -> 2,583.00 | L5: =J5*L$3% -> 2,736.00 | O5: =J5-K5-L5+M5+N5 -> 84,681.00 | P5: =O5*12 -> 1,016,172.00 | Q5: =IF(P5>L$16,((P5-L$16)*K$16+M$16)/12,IF(P5>L$15,((P5-L$15)*K$15+M$15)/12,IF(P5>L$14,((P5-L$14)*K$14+0)/12,0))) -> $9,753.19 | R5: =O5-Q5 -> 74,927.81 | U5: =R5+S5+T5 -> 74,927.81 | V5: =G5*V$3% -> 6,390.00 | W5: =G5*W$3% -> 6,381.00 | X5: =G5*X$3% -> 990.00 | Y5: =SUM(V5:X5) -> 13,761.00 | Z5: =G5+Y5 -> 103,761.0
B6: =+B5+1 -> 2 | C6: 031-0109456-5 | D6: 2019-01-01 | E6: RAMON RIJO | F6: empleado 2 | G6: 75,000.00 | J6: =G6+H6+I6 -> 75,000.00 | K6: =J6*K$3% -> 2,152.50 | L6: =J6*L$3% -> 2,280.00 | O6: =J6-K6-L6+M6+N6 -> 70,567.50 | P6: =O6*12 -> 846,810.00 | Q6: =IF(P6>L$16,((P6-L$16)*K$16+M$16)/12,IF(P6>L$15,((P6-L$15)*K$15+M$15)/12,IF(P6>L$14,((P6-L$14)*K$14+0)/12,0))) -> $6,309.35 | R6: =O6-Q6 -> 64,258.15 | U6: =R6+S6+T6 -> 64,258.15 | V6: =G6*V$3% -> 5,325.00 | W6: =G6*W$3% -> 5,317.50 | X6: =G6*X$3% -> 825.00 | Y6: =SUM(V6:X6) -> 11,467.50 | Z6: =G6+Y6 -> 86,467.5
B7: =+B6+1 -> 3 | C7: 031-0145456-8 | D7: 2014-01-01 | E7: ALBERTO QUEZADA | F7: empleado 3 | G7: 45,000.00 | J7: 45,000.00 | K7: =J7*K$3% -> 1,291.50 | L7: =J7*L$3% -> 1,368.00 | O7: 42,340.50 | P7: 508,086.00 | Q7: $1,148.32 | R7: =O7-Q7 -> 41,192.18 | U7: =R7+S7+T7 -> 41,192.18 | V7: =G7*V$3% -> 3,195.00 | W7: =G7*W$3% -> 3,190.50 | X7: 495.00 | Y7: 6,880.50 | Z7: 51,880.5
B8: 4 | C8: 031-0145456-9 | D8: 2018-01-01 | E8: RAMON PEREZ | F8: empleado 4 | G8: 65,000.00 | J8: =G8+H8+I8 -> 65,000.00 | K8: =J8*K$3% -> 1,865.50 | L8: =J8*L$3% -> 1,976.00 | O8: =J8-K8-L8+M8+N8 -> 61,158.50 | P8: 733,902.00 | Q8: $4,427.55 | R8: =O8-Q8 -> 56,730.95 | U8: =R8+S8+T8 -> 56,730.95 | V8: =G8*V$3% -> 4,615.00 | W8: =G8*W$3% -> 4,608.50 | X8: 715.00 | Y8: 9,938.50 | Z8: 74,938.5
G10: =SUM(G5:G9) -> 275,000.00 | J10: =SUM(J5:J9) -> 275,000.00 | K10: =SUM(K5:K9) -> 7,892.50 | L10: 8,360.00 | O10: =SUM(O5:O9) -> 258,747.50 | P10: =SUM(P5:P9) -> 3,104,970.00 | Q10: =SUM(Q5:Q9) -> $21,638.41 | R10: =SUM(R5:R9) -> 237,109.09 | U10: =SUM(U5:U9) -> 237,109.09 | V10: =SUM(V5:V9) -> 19,525.00 | W10: =SUM(W5:W9) -> 19,497.50 | X10: 3,025.00 | Y10: =SUM(Y5:Y9) -> 42,047.50 | Z10: =SUM(Z5:Z9) -> 317,047.5
J11: SUELDO BRUTO + COMISIONES + VACACIONES | O11: SUELDO TSS-DESCUENTOS + BONIFICACION + HORAS EXTRAS | Q11: SALE DE LA ESCALA | R11: SALARIO COTIZABLE - ISR COBRADO | Z11: sueldo bruto MAS APORTE DE LA EMPRESA
J13: Escala | K13: porcentaje | L13: monto
A14: TOPE SALARIAL | J14: Escala minima | K14: 15% | L14: 416,220.01 | U14: APORTE A INFOTEP
A15: AFP | B15: $312,000.00 | C15: =B15*K3% -> $8,954.40 | J15: Escala intermedia | K15: 20% | L15: 624,329.01 | M15: $31,216.00 | U15: =G10*0.01 -> $2,750.00
A16: SFS | B16: $156,000.00 | C16: =B16*L3% -> $4,742.40 | J16: Escala maxima | K16: 25% | L16: 867,123.01 | M16: $79,776.00
R17: TSS A PAGAR | U17: =J10*0.01 -> 2,750.00
J18: ESCALA 1 | K18: =((P5-L14)*K14)/12 | R18: EMPLEDOS | S18: =K10+L10 -> 16,252.50
J19: ESCALA 2 | K19: =((P5-L15)*K15+M15)/12 | R19: EMPLEADOR | S19: =+Y10 -> 42,047.50
J20: ESCALA 3 | K20: =((P5-L16)*K16+M16)/12 | R20: PAGO TSS | S20: =SUM(S18:S19) -> 58,300.00
R21: INFOTEP | S21: =+U15 -> $2,750.00

Sheet Horas extras
B3: Si es mensual | C3: 23.83
B4: Si es quincenal | C4: 11.91
B5: Si es semanal | C5: 5.5
B7: SUELDO | F7: CONDICIONES
B8: Sueldo | C8: $25,000.00 | F8: >44 y =68 | G8: 35% | H8: DIURNA
B9: sueldo diario | C9: =25000/23.83 -> $1,049.10 | F9: >44 y <69 | G9: 15% | H9: nocturna
B10: sueldo por hora | C10: =C9/8 -> 131.14 | F10: >69 Y NO LABORABLE | G10: 100%
B11: (+) 35% | C11: =C10*35% -> 45.90
B12: Total Horas por hora Extras | C12: =SUM(C10:C11) -> 177.04
B13: 15% | C13: =C10*15% -> 19.67
B14: Total Horas por hora Nocturnas | C14: =C12+C13 -> 196.71
B15: 100% | C15: =C10*2 -> 262.27
B17: CONDICIONES | D17: HORAS | E17: VALOR DE LAS HORAS | F17: VALOR A PAGAR
B18: 35% | C18: HORAS DIURNAS | D18: 10 | E18: =C10*1.35 -> 177.04 | F18: =D18*E18 -> $1,770.35
B19: 15% | C19: HORAS NOCTURNAS | D19: 10 | E19: =C14 -> $196.71 | F19: =(E18+E19)*D19 -> $3,737.41
B20: 100% | C20: HORAS al 100% | D20: 5 | E20: =C10*2 -> $262.27 | F20: =E20*D20 -> $1,311.37
C21: TOTAL A PAGAR | F21: =SUM(F18:F20) -> $6,819.14

Sheet HORAS EXTRAS-1 Q
A2: Nombres | B2: Sueldos | C2: Diario | D2: Salario por Hora | E2: Precio Horas Extras 35% | F2: Precio Horas Extras 100% | G2: Precio Horas Nocturnas | H2: Horas Extras Trabajadas (35%) | I2: Horas Extras Nocturnas (35+15%) | J2: Horas Extras Trabajadas (100%) | K2: A PAGAR HORAS AL 35% | L2: A PAGAR HORAS AL 100% | M2: A PAGAR HORAS NOCTURNAS | N2: TOTAL NETO A PAGAR
A3: EMPLEADO | B3: =+'[4]1era Quincena'!F13 -> 28,000.00 | C3: =B3/23.83 -> 1,174.99 | D3: =(B3/23.83)/8 -> 146.87 | E3: =D3*1.35 -> 198.28 | F3: =D3*2 -> 293.75 | G3: =E3*1.15 -> 228.02 | H3: 1.00 | I3: 1.00 | J3: 1.00 | K3: =E3*H3 -> 198.28 | L3: =F3*J3 -> 293.75 | M3: =G3*I3 -> 228.02 | N3: =SUM(K3:M3) -> 720.05
A4: EMPLEADO | B4: =+'[4]1era Quincena'!F27 -> 30,000.00 | C4: =B4/23.83 -> 1,258.92 | D4: =(B4/23.83)/8 -> 157.36 | E4: =D4*1.35 -> 212.44 | F4: =D4*2 -> 314.73 | G4: =E4*1.15 -> 244.31 | H4: 1.00 | I4: 1.00 | J4: 1.00 | K4: =E4*H4 -> 212.44 | L4: =F4*J4 -> 314.73 | M4: =G4*I4 -> 244.31 | N4: =SUM(K4:M4) -> 771.48
A5: EMPLEADO | B5: =+'[4]1era Quincena'!F14 -> 28,000.00 | C5: 1,174.99 | D5: 146.87 | E5: 198.28 | F5: 293.75 | G5: 228.02 | H5: 1.00 | I5: 1.00 | J5: 1.00 | K5: 198.28 | L5: 293.75 | M5: 228.02 | N5: 720.05
A6: EMPLEADO | B6: =+'[4]1era Quincena'!F28 -> 17,000.00 | C6: 713.39 | D6: 89.17 | E6: 120.38 | F6: 178.35 | G6: 138.44 | H6: 1.00 | I6: 1.00 | J6: 1.00 | K6: 120.38 | L6: 178.35 | M6: 138.44 | N6: 437.17
A7: EMPLEADO | B7: =+'[4]1era Quincena'!F29 -> 16,000.00 | C7: 671.42 | D7: 83.93 | E7: 113.30 | F7: 167.86 | G7: 130.30 | H7: 1.00 | I7: 1.00 | J7: 1.00 | K7: 113.30 | L7: 167.86 | M7: 130.30 | N7: 411.46
A8: EMPLEADO | B8: =+'[4]1era Quincena'!F30 -> 16,000.00 | C8: 671.42 | D8: 83.93 | E8: 113.30 | F8: 167.86 | G8: 130.30 | H8: 1.00 | I8: 1.00 | J8: 1.00 | K8: 113.30 | L8: 167.86 | M8: 130.30 | N8: 411.46
A9: EMPLEADO | B9: 15,000.00 | C9: 629.46 | D9: 78.68 | E9: 106.22 | F9: 157.36 | G9: 122.15 | H9: 1.00 | I9: 1.00 | J9: 1.00 | K9: 106.22 | L9: 157.36 | M9: 122.15 | N9: 385.74

Sheet Vacaciones
E3: PAGO QUINCENAL
B4: SALARIO MENSUAL | C4: 40,000.00 | E4: =C4/2 -> 20,000.00
B5: X DIAS 23.83 | C5: =40000/23.83 -> 1,678.56 | E5: =E4*5.91% -> 1,182.00 | F5: (TSS / 5.91%)
B6: 14 DIAS | C6: =C5*14 -> 23,499.79 | E6: =E4-E5 -> 18,818.00
B8: PRIMA VACACIONAL | C8: =C6-E6 -> 4,681.79

Sheet Regalia pascual
A2: Empleados | B2: Cargo | C2: Enero | D2: febrero | E2: Marzo | F2: Abril | G2: Mayo | H2: Junio | I2: Julio | J2: Agosto | K2: Septiembre | L2: Octubre | M2: Noviembre | N2: Diciembre | O2: Total Anual | P2: Total a pagar
A3: Ramon | B3: administrador | C3: $70,000.00 | D3: $70,000.00 | E3: $70,000.00 | F3: $70,000.00 | G3: $70,000.00 | H3: $70,000.00 | I3: $70,000.00 | J3: $70,000.00 | K3: $70,000.00 | L3: $70,000.00 | M3: $70,000.00 | N3: $70,000.00 | O3: =SUM(C3:N3) -> $840,000.00 | P3: =O3/12 -> $70,000.00
A4: perez | B4: supervisor | C4: $39,000.00 | D4: $39,000.00 | E4: $39,000.00 | F4: $39,000.00 | G4: $39,000.00 | H4: $39,000.00 | I4: $39,000.00 | J4: $39,000.00 | K4: $39,000.00 | L4: $39,000.00 | M4: $39,000.00 | N4: $41,000.00 | O4: =SUM(C4:N4) -> $470,000.00 | P4: =O4/12 -> $39,166.67
A5: lucas | B5: contador | C5: $50,290.00 | D5: $50,290.00 | E5: $50,290.00 | F5: $50,290.00 | G5: $50,290.00 | H5: $50,290.00 | I5: $50,290.00 | J5: $50,290.00 | K5: $50,290.00 | L5: $50,290.00 | M5: $50,290.00 | N5: $50,290.00 | O5: $603,480.00 | P5: $50,290.00
A6: martinez | B6: empacador | C6: $44,000.00 | D6: $44,000.00 | E6: $44,000.00 | F6: $44,000.00 | G6: $44,000.00 | H6: $44,000.00 | I6: $44,000.00 | J6: $44,000.00 | K6: $55,000.00 | L6: $55,000.00 | M6: $55,000.00 | N6: $55,000.00 | O6: $572,000.00 | P6: $47,666.67
A7: omar | B7: encargado de RRHH | C7: $35,110.00 | D7: $35,110.00 | E7: $35,110.00 | F7: $35,110.00 | G7: $35,110.00 | H7: $35,110.00 | I7: $35,110.00 | J7: $35,110.00 | K7: $35,110.00 | L7: $35,110.00 | M7: $35,110.00 | N7: $35,110.00 | O7: $421,320.00 | P7: $35,110.00
A8: leonel | B8: Auditor | C8: $35,300.00 | D8: $35,300.00 | E8: $35,300.00 | F8: $35,300.00 | G8: $35,300.00 | H8: $35,300.00 | I8: $35,300.00 | J8: $40,000.00 | K8: $40,000.00 | L8: $40,000.00 | M8: $40,000.00 | N8: $40,000.00 | O8: $447,100.00 | P8: $37,258.33
A9: danilo | B9: gerente | C9: $42,350.00 | D9: $42,350.00 | E9: $42,350.00 | F9: $42,350.00 | G9: $42,350.00 | H9: $42,350.00 | I9: $42,350.00 | J9: $42,350.00 | K9: $42,350.00 | L9: $42,350.00 | M9: $42,350.00 | N9: $42,350.00 | O9: $508,200.00 | P9: $42,350.00
A10: miguel | B10: con fiscal | C10: $0.00 | D10: $0.00 | E10: $0.00 | F10: $0.00 | G10: $0.00 | H10: $45,000.00 | I10: $45,000.00 | J10: $45,000.00 | K10: $45,000.00 | L10: $45,000.00 | M10: $45,000.00 | N10: $45,000.00 | O10: $315,000.00 | P10: $26,250.00
A11: faride | B11: encargada de compras | C11: $0.00 | D11: $0.00 | E11: $0.00 | F11: $0.00 | G11: $0.00 | H11: $49,000.00 | I11: $49,000.00 | J11: $49,000.00 | K11: $49,000.00 | L11: $55,600.00 | M11: $55,600.00 | N11: $55,600.00 | O11: $362,800.00 | P11: $30,233.33

Sheet Bonificacion
E2: UTILIDAD DE LA EMPRESA | F2: $2,500,000.00 | H2: ANOS | I2: DIAS
E3: TOTAL A REPARTIR | F3: =F2*10% -> $250,000.00 | H3: <3 | I3: 45 | W3: Fecha actual
E4: BONIFICACION DE LEY | F4: =I16 -> $400,335.71 | H4: 3 O > | I4: 60 | W4: 2020-01-01
E5: CONVERTIDOR | F5: =F3/F4 -> $0.62 | W5: 2020-01-01
W6: 2020-01-01
W7: 2020-01-01
W8: 2020-01-01
C10: NOMBRE | E10: Salario | F10: Salario diario | G10: ANOS | H10: Dias de bonificacion | I10: Bonificacion de ley | J10: BONIFICACION A PAGAR
C11: Ramon | D11: 031-0109456-4 | E11: $25,000.00 | F11: =E11/23.83 -> $1,049.10 | G11: 2 | H11: 45 | I11: =F11*H11 -> $47,209.40 | J11: =I11*F5 -> $29,481.13
C12: perez | D12: 031-0109456-5 | E12: $24,000.00 | F12: =E12/23.83 -> $1,007.13 | G12: 1 | H12: 45 | I12: =H12*F12 -> $45,321.02 | J12: =I12*F5 -> $28,301.89
C13: lucas | D13: 031-0145456-8 | E13: $55,000.00 | F13: $2,308.02 | G13: 5 | H13: 60 | I13: =F13*H13 -> $138,480.91 | J13: =I13*F$5 -> $86,477.99
C14: martinez | D14: 031-0145456-9 | E14: $41,000.00 | F14: $1,720.52 | G14: 7 | H14: 60 | I14: $103,231.22 | J14: =I14*F$5 -> $64,465.41
C15: omar | D15: 031-0109456-4 | E15: $35,000.00 | F15: $1,468.74 | G15: 1 | H15: 45 | I15: $66,093.16 | J15: $41,273.58
I16: =SUM(I11:I15) -> $400,335.71 | J16: =SUM(J11:J15) -> $250,000.00

Sheet REGISTRO CONTABLE NOMINA
N2: DETALLE | O2: AUXILIAR | P2: DEBITO | Q2: CREDITO

Sheet IR4
D2: DIRECCIÓN GENERAL DE IMPUESTOS INTERNOS
D3: CÁLCULO DE LAS RETENCIONES MENSUALES DEL ASALARIADO
D4: Versión 2017 | AZ4: IR-4
C7: RNC
C8: Agente de Retención | AQ8: 416,220.00
C9: Periodo | F9: Desde | G9: Mes | H9: Año | I9: Hasta | K9: Mes | M9: Año
G10: 7 | H10: 2025
C12: IDENTIFICACION DEL ASALARIADO | O12: REMUNERACIONES PERCIBIDAS
C13: A | I13: B | O13: C | Z13: D | AG13: E | AJ13: F | AK13: G | AL13: H | AM13: I | AN13: J | AO13: K | AP13: L | AR13: M | AT13: N | AW13: O | AY13: P | BA13: Q
B14: Líneas | C14: Apellidos y Nombres Completos | I14: Cédula /RNC | O14: Sueldos pagados por el agente de Retención | Z14: Otras remuneraciones pagadas por el Agente de Retención | AG14: Remuneraciones Pagadas por Otros Empleadores | AJ14: Total Pagado en el Mes | AK14: Retenciones e Ingresos Exentos del Período | AP14: Sueldos y otros pagos Sujetos a Retención | AR14: Liquidación Período | AT14: Saldo a favor del Asalariado | AW14: Saldo Compensado | AY14: Nuevo Saldo a favor Asalariado a compensar (si M - L es positivo) | BA14: Diferencia a Pagar
AK15: Retención Seguridad Social | AL15: Regalía Pascual (Sueldo 13) | AM15: Preaviso, Cesantía, Viáticos e Indemnizaciones Accidentes Laborales | AN15: Retención Pensión Alimenticia | AO15: TOTAL RETENCIONES e INGRESOS EXENTOS (Sumar G + H + I + J)
A16: =+(AP16*12)-416220 -> 148320.00 | B16: 1 | C16: Galvan Sanchez, Luis Fermin | D16: Galvan Sanchez, Luis Fermin | E16: Galvan Sanchez, Luis Fermin | F16: Galvan Sanchez, Luis Fermin | G16: Galvan Sanchez, Luis Fermin | H16: Galvan Sanchez, Luis Fermin | I16: 001-0384170-6 | J16: 001-0384170-6 | K16: 001-0384170-6 | L16: 001-0384170-6 | M16: 001-0384170-6 | N16: 001-0384170-6 | O16: 50,000.00 | P16: 40,000.00 | Q16: 40,000.00 | R16: 40,000.00 | S16: 40,000.00 | T16: 40,000.00 | U16: 40,000.00 | AJ16: =+SUM(O16+Z16+AG16) -> 50,000.00 | AK16: =AJ16*5.91% -> 2,955.00 | AO16: =AK16+AL16+AM16+AN16 -> 2,955.00 | AP16: =IF((+AJ16-AO16)>0,(+AJ16-AO16),0) -> 47,045.00 | AR16: =IF(AND(A16<=0,$AQ$8>0),0,IF(AND(A16<=208109,$AQ$8>0),0.15*A16,IF(AND(A16<=450903,$AQ$8>0), 31216.35 +(0.2*(A16-208109)),IF(AND(A16>=450903,$AQ$8>0), 79775.15 +(0.25*(A16-450903)),IF(A16<=624329,0.15*A16,IF(A16<=867123, 93649.35 +(0.2*(A16-624329)),IF(A16>867123, 142208.15 +(0.25*(A16-867123)))))))))/12 -> 1,854.00 | AW16: =IF((AT16-AR16)>0,AR16,AT16) -> 0 | AY16: =IF((AT16-AW16)<0,0,(AT16-AW16)) -> 0 | BA16: =IF((AR16-AT16)>0,(AR16-AT16),0) -> 1,854.00
A17: =+(AP17*12)-416220 -> 124548.60 | B17: 2 | C17: Manuela Daneiry Herrera | D17: Herrera Nuñez, Manuela Daneiry | E17: Herrera Nuñez, Manuela Daneiry | F17: Herrera Nuñez, Manuela Daneiry | G17: Herrera Nuñez, Manuela Daneiry | H17: Herrera Nuñez, Manuela Daneiry | I17: 001-1323567-5 | J17: 001-1323567-5 | K17: 001-1323567-5 | L17: 001-1323567-5 | M17: 001-1323567-5 | N17: 001-1323567-5 | O17: 12,500.00 | P17: 12,500.00 | Q17: 12,500.00 | R17: 12,500.00 | S17: 12,500.00 | T17: 12,500.00 | U17: 12,500.00 | Z17: 33,302.80 | AJ17: =+SUM(O17+Z17+AG17) -> 45,802.80 | AK17: =O17*5.91% -> 738.75 | AO17: =AK17+AL17+AM17+AN17 -> 738.75 | AP17: =IF((+AJ17-AO17)>0,(+AJ17-AO17),0) -> 45,064.05 | AR17: =IF(AND(A17<=0,$AQ$8>0),0,IF(AND(A17<=208109,$AQ$8>0),0.15*A17,IF(AND(A17<=450903,$AQ$8>0), 31216.35 +(0.2*(A17-208109)),IF(AND(A17>=450903,$AQ$8>0), 79775.15 +(0.25*(A17-450903)),IF(A17<=624329,0.15*A17,IF(A17<=867123, 93649.35 +(0.2*(A17-624329)),IF(A17>867123, 142208.15 +(0.25*(A17-867123)))))))))/12 -> 1,556.86 | AW17: =IF((AT17-AR17)>0,AR17,AT17) -> 0 | AY17: =IF((AT17-AW17)<0,0,(AT17-AW17)) -> 0 | BA17: =IF((AR17-AT17)>0,(AR17-AT17),0) -> 1,556.86
A18: =+(AP18*12)-416220 -> 35412.00 | B18: 3 | C18: Hanssel Asterio Martinez Gomez | D18: Leonardo Batista, Madelyn | E18: Leonardo Batista, Madelyn | F18: Leonardo Batista, Madelyn | G18: Leonardo Batista, Madelyn | H18: Leonardo Batista, Madelyn | I18: 402-2270266-0 | J18: 402-2270266-0 | K18: 402-2270266-0 | L18: 402-2270266-0 | M18: 402-2270266-0 | N18: 402-2270266-0 | O18: 40,000.00 | P18: 25,000.00 | Q18: 25,000.00 | R18: 25,000.00 | S18: 25,000.00 | T18: 25,000.00 | U18: 25,000.00 | AJ18: =+SUM(O18+Z18+AG18) -> 40,000.00 | AK18: =AJ18*5.91% -> 2,364.00 | AO18: 2,364.00 | AP18: 37,636.00 | AR18: 442.65 | AW18: 0 | AY18: 0 | BA18: 442.65
A19: 261228.00 | B19: 4 | C19: Joaquin Alberto Samboy Ferreras | I19: 001-1921774-3 | O19: 60,000.00 | AJ19: 60,000.00 | AK19: 3,546.00 | AO19: =AK19+AL19+AM19+AN19 -> 3,546.00 | AP19: 56,454.00 | AR19: 3,486.68 | AW19: 0 | AY19: 0 | BA19: 3,486.68
A20: 430590.00 | B20: 5 | C20: Virgilio Alfredo Mercedes Peralta | D20: Mercedes Peralta, Virgilio Alfredo | E20: Mercedes Peralta, Virgilio Alfredo | F20: Mercedes Peralta, Virgilio Alfredo | G20: Mercedes Peralta, Virgilio Alfredo | H20: Mercedes Peralta, Virgilio Alfredo | I20: 001-1838539-2 | J20: 001-1838539-2 | K20: 001-1838539-2 | L20: 001-1838539-2 | M20: 001-1838539-2 | N20: 001-1838539-2 | O20: 75,000.00 | P20: 40,000.00 | Q20: 40,000.00 | R20: 40,000.00 | S20: 40,000.00 | T20: 40,000.00 | U20: 40,000.00 | AJ20: =+SUM(O20+Z20+AG20) -> 75,000.00 | AK20: 4,432.50 | AO20: 4,432.50 | AP20: 70,567.50 | AR20: 6,309.38 | AW20: 0 | AY20: 0 | BA20: 6,309.38
A21: 148320.00 | B21: 6 | C21: Armando Peña Aquino | D21: Peña Aquino, Armando | E21: Peña Aquino, Armando | F21: Peña Aquino, Armando | G21: Peña Aquino, Armando | H21: Peña Aquino, Armando | I21: 004-0020587-8 | J21: 004-0020587-8 | K21: 004-0020587-8 | L21: 004-0020587-8 | M21: 004-0020587-8 | N21: 004-0020587-8 | O21: 50,000.00 | P21: 40,000.00 | Q21: 40,000.00 | R21: 40,000.00 | S21: 40,000.00 | T21: 40,000.00 | U21: 40,000.00 | AJ21: =+SUM(O21+Z21+AG21) -> 50,000.00 | AK21: 2,955.00 | AO21: 2,955.00 | AP21: 47,045.00 | AR21: 1,854.00 | AW21: 0 | AY21: 0 | BA21: 1,854.00
A22: 12830.40 | B22: 7 | C22: Ana Elizabeth Rosario Hernandez | D22: Rosario Hernandez, Ana Elizabeth | E22: Rosario Hernandez, Ana Elizabeth | F22: Rosario Hernandez, Ana Elizabeth | G22: Rosario Hernandez, Ana Elizabeth | H22: Rosario Hernandez, Ana Elizabeth | I22: 224-0006174-7 | J22: 224-0006174-7 | K22: 224-0006174-7 | L22: 224-0006174-7 | M22: 224-0006174-7 | N22: 224-0006174-7 | O22: 38,000.00 | P22: 40,000.00 | Q22: 40,000.00 | R22: 40,000.00 | S22: 40,000.00 | T22: 40,000.00 | U22: 40,000.00 | AJ22: =+SUM(O22+Z22+AG22) -> 38,000.00 | AK22: 2,245.80 | AO22: 2,245.80 | AP22: 35,754.20 | AR22: 160.38 | AW22: 0 | AY22: 0 | BA22: 160.38
A23: (416220.00) | B23: 8 | AJ23: 0 | AK23: 0 | AO23: 0 | AP23: 0 | AR23: 0 | AW23: 0 | AY23: 0 | BA23: 0
A24: (416220.00) | B24: 9 | AJ24: =+SUM(O24+Z24+AG24) -> 0 | AK24: 0 | AO24: =AK24+AL24+AM24+AN24 -> 0 | AP24: 0 | AR24: 0 | AW24: 0 | AY24: 0 | BA24: 0
A25: (416220.00) | B25: 10 | AJ25: 0 | AK25: 0 | AO25: 0 | AP25: 0 | AR25: 0 | AW25: 0 | AY25: 0 | BA25: 0
A26: (416220.00) | B26: 11 | AJ26: 0 | AO26: 0 | AP26: 0 | AR26: 0 | AW26: 0 | AY26: 0 | BA26: 0
A27: (416220.00) | B27: 12 | AJ27: 0 | AO27: 0 | AP27: 0 | AR27: 0 | AW27: 0 | AY27: 0 | BA27: 0
A28: (416220.00) | B28: 13 | AJ28: 0 | AO28: 0 | AP28: 0 | AR28: 0 | AW28: 0 | AY28: 0 | BA28: 0
A29: (416220.00) | B29: 14 | AJ29: 0 | AO29: 0 | AP29: =IF((+AJ29-AO29)>0,(+AJ29-AO29),0) -> 0 | AR29: 0 | AW29: 0 | AY29: 0 | BA29: 0
A30: (416220.00) | B30: 15 | AJ30: 0 | AO30: 0 | AP30: =IF((+AJ30-AO30)>0,(+AJ30-AO30),0) -> 0 | AR30: 0 | AW30: 0 | AY30: 0 | BA30: 0
A31: (416220.00) | B31: 16 | AJ31: 0 | AO31: 0 | AP31: 0 | AR31: 0 | AW31: 0 | AY31: 0 | BA31: 0
A32: (416220.00) | B32: 17 | AJ32: 0 | AO32: 0 | AP32: 0 | AR32: 0 | AW32: 0 | AY32: 0 | BA32: 0
A33: (416220.00) | B33: 18 | AJ33: 0 | AO33: 0 | AP33: 0 | AR33: 0 | AW33: 0 | AY33: 0 | BA33: 0
A34: (416220.00) | B34: 19 | AJ34: 0 | AO34: 0 | AP34: 0 | AR34: 0 | AW34: 0 | AY34: 0 | BA34: 0
A35: (416220.00) | B35: 20 | AJ35: 0 | AO35: 0 | AP35: 0 | AR35: 0 | AW35: 0 | AY35: 0 | BA35: 0
A36: (416220.00) | B36: 21 | AJ36: =+SUM(O36+Z36+AG36) -> 0 | AO36: 0 | AP36: 0 | AR36: 0 | AW36: 0 | AY36: 0 | BA36: 0
A37: (416220.00) | B37: 22 | AJ37: 0 | AO37: 0 | AP37: 0 | AR37: 0 | AW37: 0 | AY37: 0 | BA37: 0
A38: (416220.00) | B38: 23 | AJ38: 0 | AO38: 0 | AP38: 0 | AR38: 0 | AW38: 0 | AY38: 0 | BA38: 0
A39: (416220.00) | B39: 24 | AJ39: 0 | AO39: 0 | AP39: =IF((+AJ39-AO39)>0,(+AJ39-AO39),0) -> 0 | AR39: 0 | AW39: 0 | AY39: 0 | BA39: 0
A40: (416220.00) | B40: 25 | AJ40: 0 | AO40: 0 | AP40: =IF((+AJ40-AO40)>0,(+AJ40-AO40),0) -> 0 | AR40: 0 | AW40: 0 | AY40: 0 | BA40: 0
A41: (416220.00) | B41: 26 | AJ41: 0 | AO41: 0 | AP41: 0 | AR41: 0 | AW41: 0 | AY41: 0 | BA41: 0
A42: (416220.00) | B42: 27 | AJ42: 0 | AO42: 0 | AP42: 0 | AR42: 0 | AW42: 0 | AY42: 0 | BA42: 0
A43: (416220.00) | B43: 28 | AJ43: 0 | AO43: 0 | AP43: 0 | AR43: 0 | AW43: 0 | AY43: 0 | BA43: 0
A44: (416220.00) | B44: 29 | AJ44: 0 | AO44: 0 | AP44: 0 | AR44: 0 | AW44: 0 | AY44: 0 | BA44: 0
A45: (416220.00) | B45: 30 | AJ45: 0 | AO45: 0 | AP45: 0 | AR45: 0 | AW45: 0 | AY45: 0 | BA45: 0
A46: (416220.00) | B46: 31 | AJ46: 0 | AO46: 0 | AP46: 0 | AR46: 0 | AW46: 0 | AY46: 0 | BA46: 0
A47: (416220.00) | B47: 32 | AJ47: 0 | AO47: 0 | AP47: 0 | AR47: 0 | AW47: 0 | AY47: 0 | BA47: 0
A48: (416220.00) | B48: 33 | AJ48: 0 | AO48: 0 | AP48: 0 | AR48: 0 | AW48: 0 | AY48: 0 | BA48: 0
A49: (416220.00) | B49: 34 | AJ49: 0 | AO49: 0 | AP49: =IF((+AJ49-AO49)>0,(+AJ49-AO49),0) -> 0 | AR49: 0 | AW49: 0 | AY49: 0 | BA49: 0
A50: (416220.00) | B50: 35 | AJ50: 0 | AO50: 0 | AP50: =IF((+AJ50-AO50)>0,(+AJ50-AO50),0) -> 0 | AR50: 0 | AW50: 0 | AY50: 0 | BA50: 0
A51: (416220.00) | B51: 36 | AJ51: 0 | AO51: 0 | AP51: 0 | AR51: 0 | AW51: 0 | AY51: 0 | BA51: 0
A52: (416220.00) | B52: 37 | AJ52: 0 | AO52: 0 | AP52: 0 | AR52: 0 | AW52: 0 | AY52: 0 | BA52: 0
A53: (416220.00) | B53: 38 | AJ53: 0 | AO53: 0 | AP53: 0 | AR53: 0 | AW53: 0 | AY53: 0 | BA53: 0
A54: (416220.00) | B54: 39 | AJ54: 0 | AO54: 0 | AP54: 0 | AR54: 0 | AW54: 0 | AY54: 0 | BA54: 0
A55: (416220.00) | B55: 40 | AJ55: 0 | AO55: 0 | AP55: 0 | AR55: 0 | AW55: 0 | AY55: 0 | BA55: 0
A56: (416220.00) | B56: 41 | AJ56: =+SUM(O56+Z56+AG56) -> 0 | AO56: =AK56+AL56+AM56+AN56 -> 0 | AP56: 0 | AR56: 0 | AW56: 0 | AY56: 0 | BA56: 0
A57: (416220.00) | B57: 42 | AJ57: 0 | AO57: 0 | AP57: 0 | AR57: 0 | AW57: 0 | AY57: 0 | BA57: 0
A58: (416220.00) | B58: 43 | AJ58: 0 | AO58: 0 | AP58: 0 | AR58: 0 | AW58: 0 | AY58: 0 | BA58: 0
A59: (416220.00) | B59: 44 | AJ59: 0 | AO59: 0 | AP59: 0 | AR59: 0 | AW59: 0 | AY59: 0 | BA59: 0
A60: (416220.00) | B60: 45 | AJ60: 0 | AO60: 0 | AP60: =IF((+AJ60-AO60)>0,(+AJ60-AO60),0) -> 0 | AR60: 0 | AW60: 0 | AY60: 0 | BA60: 0
A61: (416220.00) | B61: 46 | AJ61: 0 | AO61: 0 | AP61: =IF((+AJ61-AO61)>0,(+AJ61-AO61),0) -> 0 | AR61: 0 | AW61: 0 | AY61: 0 | BA61: 0
A62: (416220.00) | B62: 47 | AJ62: 0 | AO62: 0 | AP62: =IF((+AJ62-AO62)>0,(+AJ62-AO62),0) -> 0 | AR62: 0 | AW62: 0 | AY62: 0 | BA62: 0
A63: (416220.00) | B63: 48 | AJ63: 0 | AO63: 0 | AP63: =IF((+AJ63-AO63)>0,(+AJ63-AO63),0) -> 0 | AR63: 0 | AW63: 0 | AY63: 0 | BA63: 0
A64: (416220.00) | B64: 49 | AJ64: 0 | AO64: 0 | AP64: =IF((+AJ64-AO64)>0,(+AJ64-AO64),0) -> 0 | AR64: 0 | AW64: 0 | AY64: 0 | BA64: 0
H65: TOTALES (RD$) | O65: =SUM(O16:O64) -> 325,500.00 | Y65: =SUM(O65:X65) -> 325,500.00 | Z65: =SUM(Z16:Z64) -> 33,302.80 | AG65: =+SUM(AG16:AG64) -> 0 | AJ65: =+SUM(AJ16:AJ64) -> 358,802.80 | AK65: 19,237.05 | AL65: 0 | AM65: 0 | AO65: 19,237.05 | AP65: 339,565.75 | AR65: =SUM(AR16:AS64) -> 15,663.95 | AT65: =+SUM(AT16:AT64) -> 0 | AW65: =+SUM(AW16:AW64) -> 0 | AY65: =+SUM(AY16:AY64) -> 0 | BA65: =+SUM(BA16:BA64) -> 15,663.95
B68: NUMERO DE ASALARIADOS | G68: 7 | K68: Llevar a la casilla con la letra (A) del formulario IR-3 | AE68: NOTA: Este formulario es tan sólo un formato o modelo, para orientar el cálculo de las retenciones. El Agente de Retención deberá conservar en todo momento el detalle de estas retenciones por beneficiarios, disponible a solicitud de esta Dirección General en este formulario.
B70: ASALARIADOS SUJETOS A RETENCION | K70: Llevar a la casilla con la letra (B) del formulario IR-3

Sheet IR 3
G5: DIRECCION GENERAL DE IMPUESTOS INTERNOS | AO5: IR-3
G6: DECLARACION Y/O PAGO DE RETENCIONES DE ASALARIADOS
C8: Versión 2017
C12: PERIODO MES/AÑO | O12: FECHA LIMITE DE PAGO
C15: I. | G15: TIPO DE DECLARACION Y/O PAGO | P15: NORMAL | S15: RECTIFICATIVA | Y15: D | AA15: C | AC15: AJUSTE O ESTIMACION | AI15: RECURSO DE RECONSIDERACION
C16: DATOS GENERALES | G16: RNC/CEDULA | O16: RAZON SOCIAL/NOMBRE | AK16: TELEFONO
G17: NOMBRE COMERCIAL | W17: CORREO ELECTRONICO | AK17: CELULAR
C19: II. | G19: 1 | H19: TOTAL ASALARIADOS | AA19: = | AB19: A | AC19: 1 | AD19: =[1]IR4!O65 -> 325,500.00
C20: ASALARIADOS | G20: 2 | H20: ASALARIADOS SUJETOS A RETENCION | AA20: = | AB20: B | AC20: 2 | AD20: 7.00
G21: 3 | H21: SUELDOS PAGADOS POR EL AGENTE | AA21: = | AB21: C | AC21: 3 | AD21: =[1]IR4!O65 -> 325,500.00
G22: 4 | H22: OTRAS REMUNERACIONES | AA22: = | AB22: D | AC22: 4 | AD22: =[1]IR4!Z65 -> 33,302.80
G23: 5 | H23: REMUNERACIONES DE OTROS AGENTES | AA23: = | AB23: E | AC23: 5
G24: 6 | H24: TOTAL PAGADO (Sumar casillas 3+4+5) | AJ24: = | AK24: F | AL24: 6 | AM24: =+SUM(AD21:AL23) -> 358,802.80
G25: 7 | H25: PAGO TOTAL SUJETO A RETENCION | AA25: = | AB25: L | AC25: 7 | AD25: =[1]IR4!AP65 -> 339,565.75
G26: 8 | H26: IMPUESTO SOBRE LA RENTA | AA26: = | AB26: M | AC26: 8 | AD26: 15,663.95
G27: 9 | H27: SALDO COMPENSADO AUTORIZADO | AA27: - | AB27: O | AC27: 9
G28: 10 | H28: SALDO POR COMPENSAR | AA28: = | AB28: P | AC28: 10
G29: 10 | AA29: + | AB29: K | AC29: 10
C30: III. | E30: III. | G30: 11 | H30: IMPUESTO A PAGAR (si el valor de las casilla 8-9 es positivo) | AJ30: = | AK30: Q | AL30: 11 | AM30: =+ABS(IF(AD26-AD27>0,AD26-AD27,0)) -> 15,663.95
C31: LIQUIDACION | G31: 12 | H31: CREDITO AUTORIZADO | AA31: - | AC31: 12
G32: 13 | H32: CREDITO GASTOS EDUCATIVOS IR-18 | AA32: - | AC32: 13
G33: 14 | H33: PAGOS COMPUTABLES A CUENTA | AA33: - | AC33: 14
G34: 15 | H34: SALDO A FAVOR ANTERIOR | AA34: - | AC34: 15
G35: 16 | H35: DIFERENCIA A PAGAR (Si el valor de las casillas 11-12-13-14-15 es positivo) | AJ35: = | AL35: 16 | AM35: =ABS(IF(AM30-AD31-AD32-AD33-AD34>0,AM30-AD31-AD32-AD33-AD34,0)) -> 15,663.95
G36: 17 | H36: SALDO A FAVOR (Si el valor de las casillas 11-12-13-14-15 es negativo) | AA36: - | AC36: 17 | AJ36: = | AL36: 17 | AM36: =ABS(IF(AM30-AD31-AD32-AD33-AD34<0,AM30-AD31-AD32-AD33-AD34,0)) -> 0.00
G37: 18 | H37: RECARGOS | W37: % de la Casilla 16 | AA37: + | AC37: 18 | AD37: =ABS(+AM35*V37) -> 0.00
G38: 19 | H38: INTERES INDEMNIZATORIO | W38: % de la Casilla 16 | AA38: + | AC38: 19 | AD38: =ABS(+AM35*V38) -> 0.00
G39: 20 | H39: TOTAL A PAGAR (Sumar casillas 16+18+19) | AJ39: = | AL39: 20 | AM39: =ABS(IF(AM35+AD37+AD38>0,AM35+AD37+AD38,0)) -> 15,663.95
G40: 21 | AC40: 21
C41: NOTA IMPORTANTE: El Agente de Retención debe conservar en todo momento el detalle de estas retenciones, disponible a solicitud de esta Direccion General del Formulario IR-4 (Asalariados).
C43: IV. JURAMENTO DEL DECLARANTE | Z43: V. PARA USO DE LA DGII
AL44: FIRMA Y SELLO
C45: Yo
C46: en calidad de
C47: afirmo bajo juramento que los datos consignados en la presente declaracion son correctos y completos y que no he omitido ni falseado dato alguno que la misma deba contener, siendo en consecuencia todo su contenido la fiel expresion de la verdad.
AA48: FECHA DE PAGO
AA51: NO. DE RECIBO DE PAGO
E53: Fecha | O53: Firma

Sheet Plantilla de Autodeterminación
K1: TARCHIVO | L1: TDOC | M1: SEXO | O1: TINGRESO
H2: Cuanto termine de llenar la información de sus empleados, presione el botón "Generar Archivo" para generar el archivo que deberá enviar a través de la página de internet de la Tesorería de la Seguridad Social. | K2: AM | L2: N | M2: M | N2: 1.10% | O2: Normal | P2: 0.011
K3: AR | L3: C | M3: F | N3: 1.15% | O3: Trabajador ocasional (no fijo) | P3: 0.0115
L4: P | N4: 1.20% | O4: Asalariado por hora o labora tiempo parcial | P4: 0.012
A5: Plantilla de Archivo AutoDeterminación | N5: 1.30% | O5: No laboró mes completo por razones varias | P5: 0.013
A6: Tipo de Archivo: | D6: AM | F6: Ver. 5.3 | O6: Salario prorrateado semanal/bisemanal
A7: RNC o Cédula: | D7: 00119217743 | O7: Pensionado antes de la Ley 87-01
A8: Período: | D8: 202507 | E8: <-- MMAAAA | O8: Exento por Ley de pago al SDSS
O9: Trabajador con salario sectorizado
C10: # de Empleados: | E10: 4
B11: TRABAJADORES | J11: SDSS | N11: DGII | U11: INFOTEP
B12: Clave | C12: Tipo | D12: Número | E12: Nombres | F12: 1er. Apellido | G12: 2do. Apellido | H12: Sexo | I12: Fecha | J12: Salario | K12: Aporte | L12: Salario | M12: Tipo | N12: Otras | O12: RNC/Céd. | P12: Remuneración | Q12: Saldo a favor | R12: Regalía Pascual | S12: Preaviso, Cesantía, Viático e Indemminzaciones | T12: Retención Pensión | U12: Salario
B13: Nómina | C13: Doc. | D13: Documento | I13: Nacimiento | J13: Cotizable | K13: Voluntario | L13: ISR | M13: Ingreso | N13: Remuneraciones | O13: Agente Ret | P13: Otros Agentes | Q13: del período | R13: (Saldo 13) | S13: por Accidentes Laborales | T13: Alimenticia | U13: INFOTEP
B14: 1 | C14: C | D14: 031-0109456-4 | H14: M | J14: 90000 | L14: 84681 | M14: Normal | U14: 90000
B15: 1 | C15: C | D15: 031-0109456-5 | H15: M | J15: 75000 | L15: 70567.5 | M15: Normal | U15: 75000
B16: 1 | C16: C | D16: 031-0145456-8 | H16: M | J16: 45000 | L16: 42340.5 | M16: Normal | U16: 45000
B17: 1 | C17: C | D17: 031-0145456-9 | H17: F | J17: 65000 | L17: 61158.5 | M17: Normal | U17: 65000

Sheet Plantilla de Bonificación
G2: Cuanto termine de llenar la información de sus empleados, presione el botón "Generar Archivo" para generar el archivo que deberá enviar a través de la página de internet de la Tesorería de la Seguridad Social TSS. | J2: TDOC | K2: SEXO | L2: TASARL
J3: N | K3: M | L3: 1.2%
J4: C | K4: F | L4: 1.3%
J5: P | L5: 1.4%
A7: Plantilla de Archivo de Bonificación INFOTEP | L7: 1.6%
A8: RNC o Cédula: | E8: Ver. 1.4
A9: Período: | E9: <-- MMAAAA
C11: # de Empleados: | D11: 1
B12: INFOTEP
B13: Tipo Doc. | C13: Número Doc. | D13: Nombres | E13: 1er. Apellido | F13: 2do. Apellido | G13: Sexo | H13: Fecha Nacimento | I13: Monto Bonificación
B15: C | C15: 031-0109456-4 | G15: M | I15: 29481.13
B16: C | C16: 031-0109456-5 | G16: M | I16: 28301.89
B17: C | C17: 031-0145456-8 | G17: M | I17: 86477.99
B18: C | C18: 031-0145456-9 | G18: M | I18: 64465.41
B19: C | C19: 031-0109456-4 | G19: M | I19: 41273.58
